[Event "2. Itzehoer Schach Open"]
[Site "Itzehoe, Germany"]
[Date "2023.04.29"]
[Round "1.43"]
[White "Knudsen, Frank"]
[Black "Haertel, Leon"]
[Result "0-1"]
[TimeControl "90 min für 40 Züge, Rest 30 min + 30 Sek pro Zug"]
[WhiteElo "940"]
[BlackElo "1323"]

1. e4 {[%clk 01:30:55]} {[%emt 00:00:05]} c5 {[%clk 01:30:57]} {[%emt
00:00:03]} 2. c4 {[%clk 01:30:52]} {[%emt 00:00:33]} Nc6 {[%clk 01:31:20]}
{[%emt 00:00:08]} 3. d3 {[%clk 01:30:02]} {[%emt 00:01:19]} g6 {[%clk
01:31:34]} {[%emt 00:00:16]} 4. a3 {[%clk 01:29:16]} {[%emt 00:01:16]} Bg7
{[%clk 01:31:55]} {[%emt 00:00:09]} 5. Nf3 {[%clk 01:28:05]} {[%emt 00:01:41]}
d6 {[%clk 01:31:04]} {[%emt 00:01:22]} 6. Be2 {[%clk 01:25:50]} {[%emt
00:02:28]} Nf6 {[%clk 01:31:00]} {[%emt 00:00:51]} 7. O-O {[%clk 01:24:53]}
{[%emt 00:01:27]} O-O {[%clk 01:31:15]} {[%emt 00:00:15]} 8. Bd2 {[%clk
01:24:30]} {[%emt 00:00:52]} Bd7 {[%clk 01:28:57]} {[%emt 00:02:48]} 9. Qc1
{[%clk 01:23:21]} {[%emt 00:01:35]} Re8 {[%clk 01:28:03]} {[%emt 00:01:28]} 10.
Bh6 {[%clk 01:22:34]} {[%emt 00:01:16]} Bh8 {[%clk 01:28:09]} {[%emt 00:00:24]}
11. h3 {[%clk 01:22:12]} {[%emt 00:00:53]} Qb6 {[%clk 01:26:55]} {[%emt
00:01:45]} 12. Ra2 {[%clk 01:20:21]} {[%emt 00:02:22]} Be6 {[%clk 01:25:21]}
{[%emt 00:02:02]} 13. Ng5 {[%clk 01:15:10]} {[%emt 00:05:40]} Nd4 {[%clk
01:24:41]} {[%emt 00:01:11]} 14. Nxe6 {[%clk 01:15:15]} {[%emt 00:00:26]} Nxe2+
{[%clk 01:25:02]} {[%emt 00:00:09]} 15. Kh1 {[%clk 01:15:09]} {[%emt 00:00:35]}
Nxc1 {[%clk 01:25:26]} {[%emt 00:00:06]} 16. Rxc1 {[%clk 01:15:30]} {[%emt
00:00:08]} fxe6 {[%clk 01:25:51]} {[%emt 00:00:07]} 17. Re1 {[%clk 01:15:16]}
{[%emt 00:00:43]} Nd7 {[%clk 01:26:02]} {[%emt 00:00:18]} 18. b4 {[%clk
01:14:31]} {[%emt 00:01:17]} cxb4 {[%clk 01:26:22]} {[%emt 00:00:10]} 19. axb4
{[%clk 01:14:32]} {[%emt 00:00:29]} Qxb4 {[%clk 01:26:43]} {[%emt 00:00:08]} 20.
Rd1 {[%clk 01:13:49]} {[%emt 00:01:13]} Nc5 {[%clk 01:26:39]} {[%emt 00:00:33]}
21. Be3 {[%clk 01:09:50]} {[%emt 00:04:30]} Nxd3 {[%clk 01:26:36]} {[%emt
00:00:33]} 22. Kh2 {[%clk 01:03:54]} {[%emt 00:06:27]} Be5+ {[%clk 01:26:45]}
{[%emt 00:00:21]} 23. g3 {[%clk 01:04:08]} {[%emt 00:00:15]} Qxc4 {[%clk
01:26:45]} {[%emt 00:00:29]} 24. Rdd2 {[%clk 01:03:00]} {[%emt 00:01:40]} Qxe4
{[%clk 01:26:46]} {[%emt 00:00:28]} 25. Rxa7 {[%clk 00:59:54]} {[%emt
00:03:36]} Ne1 {[%clk 01:26:55]} {[%emt 00:00:21]} 26. f3 {[%clk 00:58:54]}
{[%emt 00:01:30]} Nxf3+ {[%clk 01:27:13]} {[%emt 00:00:12]} 27. Kg2 {[%clk
00:58:36]} {[%emt 00:00:48]} Nxd2+ {[%clk 01:27:35]} {[%emt 00:00:08]} 28. Kf2
{[%clk 00:58:38]} {[%emt 00:00:28]} Qf3+ {[%clk 01:27:49]} {[%emt 00:00:16]} 29.
Ke1 {[%clk 00:58:02]} {[%emt 00:01:06]} Qxe3+ {[%clk 01:28:06]} {[%emt
00:00:13]} 30. Kd1 {[%clk 00:58:06]} {[%emt 00:00:26]} Nxb1 {[%clk 01:28:31]}
{[%emt 00:00:06]} 31. Kc2 {[%clk 00:58:07]} {[%emt 00:00:29]} Qc3+ {[%clk
01:28:55]} {[%emt 00:00:06]} 32. Kxb1 {[%clk 00:57:32]} {[%emt 00:01:04]} Qb2#
{[%clk 01:29:19]} {[%emt 00:00:06]} 0-1

[Event "2. Itzehoer Schach Open"]
[Site "Itzehoe, Germany"]
[Date "2023.04.29"]
[Round "1.37"]
[White "Moeller, Patrick"]
[Black "Stehle, Fabian"]
[Result "0-1"]
[TimeControl "90 min für 40 Züge, Rest 30 min + 30 Sek pro Zug"]
[WhiteElo "1343"]
[BlackElo "1569"]

1. c4 {[%clk 01:30:57]} {[%emt 00:00:02]} Nf6 {[%clk 01:30:56]} {[%emt
00:00:04]} 2. Nc3 {[%clk 01:31:21]} {[%emt 00:00:06]} e6 {[%clk 01:31:22]}
{[%emt 00:00:05]} 3. g3 {[%clk 01:31:46]} {[%emt 00:00:05]} d5 {[%clk
01:31:46]} {[%emt 00:00:06]} 4. e3 {[%clk 01:31:23]} {[%emt 00:00:53]} c5
{[%clk 01:31:32]} {[%emt 00:00:43]} 5. Nf3 {[%clk 01:29:49]} {[%emt 00:02:03]}
Nc6 {[%clk 01:31:18]} {[%emt 00:00:45]} 6. d3 {[%clk 01:26:00]} {[%emt
00:04:19]} Be7 {[%clk 01:23:35]} {[%emt 00:08:13]} 7. Bg2 {[%clk 01:26:16]}
{[%emt 00:00:15]} dxc4 {[%clk 01:22:21]} {[%emt 00:01:44]} 8. dxc4 {[%clk
01:26:37]} {[%emt 00:00:08]} Qxd1+ {[%clk 01:22:29]} {[%emt 00:00:21]} 9. Nxd1
{[%clk 01:27:00]} {[%emt 00:00:08]} O-O {[%clk 01:18:38]} {[%emt 00:04:21]} 10.
O-O {[%clk 01:26:16]} {[%emt 00:01:14]} Bd7 {[%clk 01:18:22]} {[%emt 00:00:45]}
11. Nc3 {[%clk 01:20:40]} {[%emt 00:06:06]} Rfd8 {[%clk 01:11:11]} {[%emt
00:07:42]} 12. b3 {[%clk 01:12:01]} {[%emt 00:09:09]} Be8 {[%clk 01:07:51]}
{[%emt 00:03:49]} 13. Bb2 {[%clk 01:08:37]} {[%emt 00:03:55]} Rd7 {[%clk
01:02:54]} {[%emt 00:05:27]} 14. Ne2 {[%clk 00:56:03]} {[%emt 00:13:04]} Rad8
{[%clk 01:02:21]} {[%emt 00:01:03]} 15. Nf4 {[%clk 00:54:49]} {[%emt 00:01:44]}
Nb4 {[%clk 00:50:34]} {[%emt 00:12:17]} 16. Ne5 {[%clk 00:50:46]} {[%emt
00:04:33]} Rd2 {[%clk 00:45:31]} {[%emt 00:05:33]} 17. Bc3 {[%clk 00:47:27]}
{[%emt 00:03:49]} Rc2 {[%clk 00:44:36]} {[%emt 00:01:25]} 18. Bxb4 {[%clk
00:41:11]} {[%emt 00:06:46]} cxb4 {[%clk 00:44:58]} {[%emt 00:00:07]} 19. Rfc1
{[%clk 00:38:03]} {[%emt 00:03:39]} Rxc1+ {[%clk 00:43:52]} {[%emt 00:01:36]}
20. Rxc1 {[%clk 00:38:26]} {[%emt 00:00:07]} Nd7 {[%clk 00:36:06]} {[%emt
00:08:15]} 21. Ned3 {[%clk 00:31:06]} {[%emt 00:07:50]} b6 {[%clk 00:35:28]}
{[%emt 00:01:08]} 22. h4 {[%clk 00:29:36]} {[%emt 00:02:00]} a5 {[%clk
00:34:03]} {[%emt 00:01:55]} 23. Ne2 {[%clk 00:25:30]} {[%emt 00:04:36]} Nc5
{[%clk 00:31:45]} {[%emt 00:02:48]} 24. Nxc5 {[%clk 00:18:14]} {[%emt
00:07:46]} Bxc5 {[%clk 00:32:06]} {[%emt 00:00:09]} 25. Nd4 {[%clk 00:17:50]}
{[%emt 00:00:54]} Bxd4 {[%clk 00:32:00]} {[%emt 00:00:36]} 26. exd4 {[%clk
00:18:16]} {[%emt 00:00:05]} Rxd4 {[%clk 00:32:12]} {[%emt 00:00:17]} 27. c5
{[%clk 00:18:38]} {[%emt 00:00:08]} bxc5 {[%clk 00:31:25]} {[%emt 00:01:16]} 28.
Rxc5 {[%clk 00:19:03]} {[%emt 00:00:05]} Rd1+ {[%clk 00:25:58]} {[%emt
00:05:58]} 29. Kh2 {[%clk 00:19:22]} {[%emt 00:00:10]} f6 {[%clk 00:26:11]}
{[%emt 00:00:17]} 30. Rxa5 {[%clk 00:18:27]} {[%emt 00:01:26]} Rd2 {[%clk
00:26:22]} {[%emt 00:00:19]} 31. Kg1 {[%clk 00:18:00]} {[%emt 00:00:57]} Kf7
{[%clk 00:25:56]} {[%emt 00:00:55]} 32. Ra7+ {[%clk 00:14:26]} {[%emt
00:04:04]} Kg6 {[%clk 00:22:18]} {[%emt 00:04:08]} 33. g4 {[%clk 00:11:36]}
{[%emt 00:03:20]} Rd4 {[%clk 00:19:01]} {[%emt 00:03:48]} 34. h5+ {[%clk
00:06:49]} {[%emt 00:05:17]} Kh6 {[%clk 00:19:24]} {[%emt 00:00:07]} 35. Bf3
{[%clk 00:06:50]} {[%emt 00:00:30]} e5 {[%clk 00:18:43]} {[%emt 00:01:10]} 36.
Re7 {[%clk 00:06:10]} {[%emt 00:01:09]} Bd7 {[%clk 00:17:18]} {[%emt 00:01:56]}
37. g5+ {[%clk 00:05:07]} {[%emt 00:01:33]} fxg5 {[%clk 00:17:39]} {[%emt
00:00:08]} 38. Rxe5 {[%clk 00:05:28]} {[%emt 00:00:10]} Bg4 {[%clk 00:16:55]}
{[%emt 00:01:14]} 39. Re4 {[%clk 00:03:20]} {[%emt 00:02:38]} Rxe4 {[%clk
00:16:36]} {[%emt 00:00:48]} 40. Bxe4 {[%clk 00:03:39]} {[%emt 00:00:12]} Bxh5
{[%clk 00:16:56]} {[%emt 00:00:10]} 41. Kh2 {[%clk 00:03:58]} {[%emt 00:00:11]}
Bg6 {[%clk 00:17:03]} {[%emt 00:00:23]} 42. Bd5 {[%clk 00:02:37]} {[%emt
00:01:51]} Bb1 {[%clk 00:17:08]} {[%emt 00:00:25]} 43. Kg3 {[%clk 00:02:34]}
{[%emt 00:00:33]} Kg6 {[%clk 00:16:55]} {[%emt 00:00:42]} 44. f4 {[%clk
00:02:38]} {[%emt 00:00:26]} Kf5 {[%clk 00:15:21]} {[%emt 00:02:04]} 45. fxg5
{[%clk 00:02:54]} {[%emt 00:00:15]} Kxg5 {[%clk 00:15:32]} {[%emt 00:00:19]} 46.
Bg8 {[%clk 00:02:31]} {[%emt 00:00:53]} h5 {[%clk 00:15:23]} {[%emt 00:00:38]}
47. Kh3 {[%clk 00:01:37]} {[%emt 00:01:24]} Bxa2 {[%clk 00:15:36]} {[%emt
00:00:16]} 48. Kg3 {[%clk 00:01:35]} {[%emt 00:00:32]} h4+ {[%clk 00:15:03]}
{[%emt 00:01:04]} 49. Kh3 {[%clk 00:01:48]} {[%emt 00:00:17]} g6 {[%clk
00:15:15]} {[%emt 00:00:18]} 50. Bd5 {[%clk 00:01:10]} {[%emt 00:01:08]} Bb1
{[%clk 00:15:35]} {[%emt 00:00:10]} 51. Bc4 {[%clk 00:30:23]} {[%emt 00:01:17]}
Bf5+ {[%clk 00:45:46]} {[%emt 00:00:19]} 52. Kh2 {[%clk 00:30:32]} {[%emt
00:00:20]} Kf4 {[%clk 00:45:59]} {[%emt 00:00:18]} 53. Kg2 {[%clk 00:30:47]}
{[%emt 00:00:15]} g5 {[%clk 00:46:14]} {[%emt 00:00:15]} 54. Kf2 {[%clk
00:30:28]} {[%emt 00:00:49]} g4 {[%clk 00:46:28]} {[%emt 00:00:16]} 55. Kg1
{[%clk 00:29:57]} {[%emt 00:01:01]} g3 {[%clk 00:46:37]} {[%emt 00:00:21]} 56.
Kg2 {[%clk 00:29:58]} {[%emt 00:00:29]} h3+ {[%clk 00:46:49]} {[%emt 00:00:19]}
0-1

[Event "2. Itzehoer Schach Open"]
[Site "Itzehoe, Germany"]
[Date "2023.04.29"]
[Round "1.39"]
[White "Eichmann, Phillip"]
[Black "Drozd, Maciej"]
[Result "0-1"]
[TimeControl "90 min für 40 Züge, Rest 30 min + 30 Sek pro Zug"]
[WhiteElo "1052"]
[BlackElo "1334"]

1. e4 {[%emt 00:00:02]} c5 {[%clk 01:30:57]} {[%emt 00:00:02]} 2. Nf3 {[%clk
01:31:16]} {[%emt 00:00:14]} d6 {[%clk 01:31:19]} {[%emt 00:00:07]} 3. Nc3
{[%clk 01:31:36]} {[%emt 00:00:10]} Nf6 {[%clk 01:31:28]} {[%emt 00:00:20]} 4.
Bc4 {[%clk 01:31:57]} {[%emt 00:00:10]} Nc6 {[%clk 01:31:49]} {[%emt 00:00:09]}
5. Ng5 {[%clk 01:32:05]} {[%emt 00:00:21]} Ne5 {[%clk 01:31:49]} {[%emt
00:00:30]} 6. Bb3 {[%clk 01:32:21]} {[%emt 00:00:16]} h6 {[%clk 01:31:19]}
{[%emt 00:00:59]} 7. Nf3 {[%clk 01:32:14]} {[%emt 00:00:38]} Bg4 {[%clk
01:28:31]} {[%emt 00:03:16]} 8. Ba4+ {[%clk 01:31:31]} {[%emt 00:01:13]} Bd7
{[%clk 01:26:17]} {[%emt 00:02:44]} 9. Bb3 {[%clk 01:30:43]} {[%emt 00:01:19]}
e6 {[%clk 01:25:47]} {[%emt 00:00:59]} 10. d3 {[%clk 01:30:33]} {[%emt
00:00:40]} Be7 {[%clk 01:26:06]} {[%emt 00:00:12]} 11. Bf4 {[%clk 01:30:43]}
{[%emt 00:00:19]} Ng6 {[%clk 01:25:48]} {[%emt 00:00:48]} 12. Bg3 {[%clk
01:29:06]} {[%emt 00:02:07]} O-O {[%clk 01:26:04]} {[%emt 00:00:15]} 13. Qd2
{[%clk 01:28:44]} {[%emt 00:00:48]} b5 {[%clk 01:26:02]} {[%emt 00:00:37]} 14.
a3 {[%clk 01:28:45]} {[%emt 00:00:29]} a5 {[%clk 01:26:20]} {[%emt 00:00:12]}
15. O-O {[%clk 01:28:21]} {[%emt 00:00:53]} Qb6 {[%clk 01:23:23]} {[%emt
00:03:26]} 16. Ne2 {[%clk 01:27:24]} {[%emt 00:01:28]} a4 {[%clk 01:21:36]}
{[%emt 00:02:17]} 17. Ba2 {[%clk 01:27:37]} {[%emt 00:00:16]} b4 {[%clk
01:22:01]} {[%emt 00:00:05]} 18. d4 {[%clk 01:21:44]} {[%emt 00:06:24]} Nxe4
{[%clk 01:21:31]} {[%emt 00:00:59]} 19. Qd3 {[%clk 01:21:19]} {[%emt 00:00:52]}
Nxg3 {[%clk 01:20:51]} {[%emt 00:01:12]} 20. dxc5 {[%clk 01:21:22]} {[%emt
00:00:28]} Nxe2+ {[%clk 01:21:00]} {[%emt 00:00:20]} 21. Qxe2 {[%clk 01:21:39]}
{[%emt 00:00:12]} dxc5 {[%clk 01:21:14]} {[%emt 00:00:17]} 22. Bc4 {[%clk
01:21:42]} {[%emt 00:00:28]} Bf6 {[%clk 01:21:01]} {[%emt 00:00:42]} 23. Rad1
{[%clk 01:20:54]} {[%emt 00:01:19]} Rfd8 {[%clk 01:20:14]} {[%emt 00:01:16]} 24.
Rb1 {[%clk 01:20:17]} {[%emt 00:01:07]} Ra5 {[%clk 01:19:46]} {[%emt 00:00:58]}
25. Qe3 {[%clk 01:19:56]} {[%emt 00:00:52]} Qb7 {[%clk 01:17:41]} {[%emt
00:02:35]} 26. Rfd1 {[%clk 01:19:31]} {[%emt 00:00:53]} Bc6 {[%clk 01:16:37]}
{[%emt 00:01:35]} 27. Be2 {[%clk 01:18:47]} {[%emt 00:01:15]} Rxd1+ {[%clk
01:16:44]} {[%emt 00:00:22]} 28. Rxd1 {[%clk 01:19:14]} {[%emt 00:00:04]} Bxb2
{[%clk 01:16:58]} {[%emt 00:00:16]} 29. Qd2 {[%clk 01:19:14]} {[%emt 00:00:27]}
Ra8 {[%clk 01:16:56]} {[%emt 00:00:37]} 30. Qd6 {[%clk 01:19:14]} {[%emt
00:00:28]} bxa3 {[%clk 01:15:16]} {[%emt 00:02:10]} 31. Bc4 {[%clk 01:19:17]}
{[%emt 00:00:27]} Rc8 {[%clk 01:13:44]} {[%emt 00:02:04]} 32. Qd3 {[%clk
01:18:36]} {[%emt 00:01:09]} Qc7 {[%clk 01:11:41]} {[%emt 00:02:33]} 33. Ba2
{[%clk 01:18:30]} {[%emt 00:00:37]} Bd5 {[%clk 01:12:05]} {[%emt 00:00:06]} 34.
Bxd5 {[%clk 01:18:33]} {[%emt 00:00:27]} exd5 {[%clk 01:12:28]} {[%emt
00:00:06]} 35. Qxd5 {[%clk 01:18:52]} {[%emt 00:00:11]} c4 {[%clk 01:12:04]}
{[%emt 00:00:55]} 36. Rb1 {[%clk 01:18:54]} {[%emt 00:00:28]} Rd8 {[%clk
01:12:17]} {[%emt 00:00:16]} 37. Qb5 {[%clk 01:18:48]} {[%emt 00:00:28]} a2
{[%clk 01:12:17]} {[%emt 00:00:39]} 38. Qxb2 {[%clk 01:18:52]} {[%emt
00:00:26]} axb1=Q+ {[%clk 01:12:35]} {[%emt 00:00:12]} 39. Qxb1 {[%emt
00:00:01]} Qd6 {[%emt 00:00:14]} 40. Qe1 {[%clk 01:18:34]} {[%emt 00:00:33]}
Qd1 {[%clk 01:12:57]} {[%emt 00:00:08]} 41. Kf1 {[%clk 01:18:55]} {[%emt
00:00:09]} a3 {[%clk 01:13:04]} {[%emt 00:00:23]} 42. Qxd1 {[%clk 01:18:54]}
{[%emt 00:00:31]} Rxd1+ {[%clk 01:13:23]} {[%emt 00:00:10]} 43. Ke2 {[%clk
01:19:22]} {[%emt 00:00:02]} a2 {[%clk 01:13:33]} {[%emt 00:00:21]} 44. Kxd1
{[%emt 00:00:12]} a1=Q+ {[%emt 00:00:10]} 45. Kd2 {[%clk 01:19:18]} {[%emt
00:00:13]} c3+ {[%clk 01:13:48]} {[%emt 00:00:14]} 46. Ke3 {[%clk 01:19:30]}
{[%emt 00:00:16]} Qb2 {[%clk 01:13:19]} {[%emt 00:01:01]} 47. Nd4 {[%clk
01:19:48]} {[%emt 00:00:12]} Nh4 {[%clk 01:13:26]} {[%emt 00:00:22]} 48. g3
{[%clk 01:20:08]} {[%emt 00:00:10]} Ng2+ {[%clk 01:13:22]} {[%emt 00:00:35]} 49.
Ke2 {[%clk 01:20:23]} {[%emt 00:00:13]} Qb6 {[%clk 01:13:12]} {[%emt 00:00:40]}
50. Nb3 {[%clk 01:20:35]} {[%emt 00:00:20]} Qe6+ {[%clk 01:13:25]} {[%emt
00:00:17]} 51. Kf1 {[%clk 01:20:53]} {[%emt 00:00:11]} Qxb3 {[%clk 01:13:43]}
{[%emt 00:00:13]} 52. cxb3 {[%clk 01:20:47]} {[%emt 00:00:34]} c2 {[%clk
01:14:08]} {[%emt 00:00:07]} 53. Kxg2 {[%clk 01:21:01]} {[%emt 00:00:14]} c1=Q
{[%clk 01:14:32]} {[%emt 00:00:09]} 54. b4 {[%clk 01:21:19]} {[%emt 00:00:12]}
Qb2 {[%clk 01:14:56]} {[%emt 00:00:06]} 55. Kf1 {[%clk 01:21:42]} {[%emt
00:00:06]} Qxb4 {[%clk 01:15:18]} {[%emt 00:00:07]} 56. Kg2 {[%clk 01:22:05]}
{[%emt 00:00:08]} Kf8 {[%clk 01:15:37]} {[%emt 00:00:11]} 57. Kg1 {[%clk
01:22:27]} {[%emt 00:00:07]} Ke7 {[%clk 01:15:59]} {[%emt 00:00:09]} 58. Kg2
{[%clk 01:22:48]} {[%emt 00:00:09]} Kf6 {[%clk 01:16:21]} {[%emt 00:00:08]} 59.
Kg1 {[%clk 01:22:36]} {[%emt 00:00:42]} Kf5 {[%clk 01:16:17]} {[%emt 00:00:33]}
60. Kg2 {[%clk 01:23:04]} {[%emt 00:00:02]} Qe4+ {[%clk 01:16:16]} {[%emt
00:00:31]} 61. Kf1 {[%clk 01:23:22]} {[%emt 00:00:11]} Kg4 {[%clk 01:16:24]}
{[%emt 00:00:23]} 62. Kg1 {[%clk 01:23:43]} {[%emt 00:00:09]} Kh3 {[%clk
01:15:29]} {[%emt 00:00:25]} 63. Kf1 {[%clk 01:24:10]} {[%emt 00:01:03]} Kxh2
{[%clk 01:15:45]} {[%emt 00:00:14]} 64. g4 {[%clk 01:24:32]} {[%emt 00:00:08]}
Qxg4 {[%clk 01:16:01]} {[%emt 00:00:14]} 65. Ke1 {[%clk 01:24:58]} {[%emt
00:00:05]} Qd4 {[%clk 01:16:18]} {[%emt 00:00:13]} 66. Kf1 {[%clk 01:25:17]}
{[%emt 00:00:11]} Qd1# {[%clk 01:16:07]} {[%emt 00:00:11]} 0-1

[Event "2. Itzehoer Schach Open"]
[Site "Itzehoe, Germany"]
[Date "2023.04.29"]
[Round "1.45"]
[White "Schartl, Richard"]
[Black "Tran, Hanna Emilie Mai Hoa"]
[Result "0-1"]
[TimeControl "90 min für 40 Züge, Rest 30 min + 30 Sek pro Zug"]
[WhiteElo "849"]
[BlackElo "1250"]

1. e4 {[%emt 00:00:07]} d6 {[%emt 00:00:17]} 2. d4 {[%clk 01:30:27]} {[%emt
00:00:09]} Nd7 {[%clk 01:30:48]} {[%emt 00:00:13]} 3. Nf3 {[%clk 01:30:40]}
{[%emt 00:00:17]} Ngf6 {[%clk 01:30:33]} {[%emt 00:00:45]} 4. Nc3 {[%clk
01:30:46]} {[%emt 00:00:16]} e5 {[%clk 01:30:32]} {[%emt 00:00:38]} 5. d5
{[%clk 01:30:26]} {[%emt 00:00:49]} Be7 {[%clk 01:30:54]} {[%emt 00:00:09]} 6.
Bd3 {[%clk 01:30:21]} {[%emt 00:00:35]} O-O {[%clk 01:31:07]} {[%emt 00:00:16]}
7. O-O {[%clk 01:30:26]} {[%emt 00:00:26]} h6 {[%clk 01:30:49]} {[%emt
00:00:48]} 8. Be3 {[%clk 01:30:29]} {[%emt 00:00:11]} c6 {[%clk 01:29:57]}
{[%emt 00:01:39]} 9. a3 {[%clk 01:29:37]} {[%emt 00:01:20]} a5 {[%clk
01:30:14]} {[%emt 00:00:14]} 10. Qd2 {[%clk 01:29:45]} {[%emt 00:00:20]} Ng4
{[%clk 01:28:47]} {[%emt 00:01:59]} 11. h3 {[%clk 01:28:57]} {[%emt 00:01:17]}
Nxe3 {[%clk 01:29:10]} {[%emt 00:00:08]} 12. Qxe3 {[%clk 01:29:20]} {[%emt
00:00:08]} Qb6 {[%clk 01:25:19]} {[%emt 00:04:21]} 13. Qxb6 {[%clk 01:29:16]}
{[%emt 00:00:33]} Nxb6 {[%clk 01:25:38]} {[%emt 00:00:12]} 14. a4 {[%clk
01:27:37]} {[%emt 00:01:49]} Nd7 {[%clk 01:24:56]} {[%emt 00:01:32]} 15. b3
{[%emt 00:00:55]} Nf6 {[%emt 00:00:44]} 16. Ne2 {[%clk 01:21:53]} {[%emt
00:04:35]} cxd5 {[%clk 01:24:54]} {[%emt 00:00:32]} 17. exd5 {[%clk 01:21:47]}
{[%emt 00:00:19]} e4 {[%clk 01:25:14]} {[%emt 00:00:27]} 18. Bxe4 {[%clk
01:20:43]} {[%emt 00:01:34]} Nxe4 {[%clk 01:25:37]} {[%emt 00:00:07]} 19. Ned4
{[%clk 01:20:47]} {[%emt 00:00:26]} Bf6 {[%clk 01:25:40]} {[%emt 00:00:27]} 20.
Rfe1 {[%clk 01:20:13]} {[%emt 00:01:03]} Nc5 {[%clk 01:25:35]} {[%emt
00:00:36]} 21. c3 {[%clk 01:18:49]} {[%emt 00:01:54]} Bxd4 {[%clk 01:25:45]}
{[%emt 00:00:20]} 22. Nxd4 {[%clk 01:18:54]} {[%emt 00:00:24]} Bd7 {[%clk
01:26:00]} {[%emt 00:00:17]} 23. Re7 {[%emt 00:00:25]} Rfe8 {[%clk 01:25:58]}
{[%emt 00:00:29]} 24. Rae1 {[%clk 01:19:08]} {[%emt 00:00:23]} Rxe7 {[%clk
01:25:34]} {[%emt 00:00:54]} 25. Rxe7 {[%clk 01:19:31]} {[%emt 00:00:08]} Re8
{[%clk 01:25:57]} {[%emt 00:00:07]} 26. Rxe8+ {[%clk 01:19:34]} {[%emt
00:00:26]} Bxe8 {[%clk 01:26:20]} {[%emt 00:00:08]} 27. b4 {[%emt 00:00:54]}
axb4 {[%emt 00:00:14]} 28. cxb4 {[%clk 01:18:43]} {[%emt 00:00:12]} Nxa4 {[%clk
01:26:45]} {[%emt 00:00:06]} 29. b5 {[%clk 01:18:53]} {[%emt 00:00:19]} Nc3
{[%clk 01:27:04]} {[%emt 00:00:12]} 30. Nf5 {[%clk 01:19:03]} {[%emt 00:00:21]}
Nxb5 {[%clk 01:27:21]} {[%emt 00:00:13]} 31. Ne7+ {[%emt 00:00:38]} Kf8 {[%emt
00:00:08]} 32. Nc8 {[%clk 01:18:15]} {[%emt 00:00:31]} f6 {[%clk 01:27:29]}
{[%emt 00:00:22]} 33. g4 {[%clk 01:18:08]} {[%emt 00:00:32]} h5 {[%clk
01:27:25]} {[%emt 00:00:39]} 34. f4 {[%clk 01:18:00]} {[%emt 00:00:37]} hxg4
{[%clk 01:27:41]} {[%emt 00:00:14]} 35. hxg4 {[%clk 01:18:08]} {[%emt
00:00:22]} Bd7 {[%clk 01:27:59]} {[%emt 00:00:11]} 36. Nb6 {[%clk 01:17:36]}
{[%emt 00:01:03]} Bxg4 {[%clk 01:28:22]} {[%emt 00:00:07]} 37. Kf2 {[%emt
00:00:15]} Nd4 {[%emt 00:00:44]} 38. Ke3 {[%clk 01:16:48]} {[%emt 00:00:18]}
Nf5+ {[%clk 01:28:29]} {[%emt 00:00:24]} 39. Ke4 {[%emt 00:00:27]} Ne7 {[%emt
00:00:22]} 40. Nd7+ {[%clk 01:16:12]} {[%emt 00:00:17]} Bxd7 {[%clk 01:28:48]}
{[%emt 00:00:11]} 41. f5 {[%clk 01:16:02]} {[%emt 00:00:40]} Bxf5+ {[%clk
01:29:01]} {[%emt 00:00:17]} 42. Kf4 {[%clk 01:16:13]} {[%emt 00:00:19]} b5
{[%clk 01:29:21]} {[%emt 00:00:11]} 43. Ke3 {[%clk 01:14:31]} {[%emt 00:02:10]}
Nxd5+ {[%clk 01:29:43]} {[%emt 00:00:10]} 44. Kd4 {[%clk 01:14:51]} {[%emt
00:00:08]} b4 {[%clk 01:29:40]} {[%emt 00:00:34]} 45. Kc4 {[%emt 00:01:01]} g5
{[%emt 00:00:10]} 46. Kd4 {[%clk 01:13:13]} {[%emt 00:00:57]} b3 {[%clk
01:29:56]} {[%emt 00:00:14]} 47. Kxd5 {[%clk 01:11:55]} {[%emt 00:01:46]} b2
{[%clk 01:30:18]} {[%emt 00:00:11]} 48. Kc6 {[%clk 01:12:03]} {[%emt 00:00:21]}
b1=Q {[%clk 01:30:37]} {[%emt 00:00:10]} 49. Kc7 {[%clk 01:12:16]} {[%emt
00:00:18]} Qc2+ {[%clk 01:30:54]} {[%emt 00:00:13]} 50. Kd8 {[%clk 01:12:43]}
{[%emt 00:00:04]} Qc8# {[%clk 01:31:12]} {[%emt 00:00:07]} 0-1